bitfinex/quotes_ETHUSD_20251224
["timestamp","ask_amount","ask_price","bid_price","bid_amount"]
[1766586863466,0.94429904,2919.0,2917.8,0.893]
[1766586863710,0.9186,2918.8,2917.8,0.893]
[1766586864202,0.02569904,2918.7,2917.8,0.893]
[1766586864407,0.2,2919.4,2917.9,0.03427122]
[1766586864608,0.2,2919.2,2917.9,0.03427122]
[1766586864775,0.94429904,2919.1,2917.9,0.03427122]
[1766586864961,0.94429904,2919.1,2917.5,0.03427592]
[1766586865164,0.94429904,2919.1,2917.6,0.893]
[1766586865363,0.94429904,2919.1,2917.7,0.92727357]
[1766586865684,0.9186,2918.9,2917.7,0.92727357]
[1766586866002,0.81985196,2918.8,2917.7,0.87727357]
[1766586866167,0.81985196,2918.8,2917.3,0.9868]
[1766586866168,0.9186,2918.7,2917.5,0.893]
[1766586866370,0.9186,2918.5,2917.5,0.893]
[1766586866576,0.04283168,2918.4,2917.5,0.893]
[1766586866776,0.04283168,2918.4,2917.6,1.01251322]
[1766586867000,0.04282728,2918.7,2917.7,0.19055132]
[1766586867197,0.9186,2918.6,2916.6,0.9888]
[1766586867376,0.9186,2918.4,2916.8,0.9868]
[1766586867575,0.9186,2918.2,2916.9,0.91772042]
[1766586867775,4.38832344,2918.1,2916.9,0.91772042]
[1766586867999,0.04283755,2918.0,2917.0,0.19045204]
[1766586868203,0.09877552,2918.5,2917.0,0.19045204]
[1766586868505,0.09877552,2918.9,2917.0,1.08245204]
[1766586868506,0.9186,2918.4,2917.0,1.08245204]
[1766586869076,0.9186,2918.2,2917.1,0.892]
[1766586869288,0.9186,2918.0,2916.6,0.002]
[1766586869612,0.01787196,2917.0,2916.6,0.002]
[1766586869767,0.04284049,2917.8,2916.6,0.002]
[1766586869968,0.04284196,2917.7,2916.6,0.9888]
[1766586870204,0.04283902,2917.9,2916.6,0.9888]
[1766586870402,6.95184568,2918.4,2916.7,0.892]
[1766586870602,0.73801772,2918.3,2916.8,1.17488]
[1766586870907,0.9186,2918.2,2916.9,0.892]
[1766586871112,0.04283609,2918.1,2917.0,0.9868]
[1766586871277,0.09877552,2918.3,2917.0,0.9868]
[1766586871476,0.09877552,2918.1,2917.0,0.9868]
[1766586871679,0.04283755,2918.0,2917.0,0.9868]
[1766586871997,0.04283755,2918.0,2917.1,1.07988]
[1766586872193,0.09877552,2917.9,2917.1,0.892]
[1766586872508,0.09877552,2917.9,2916.6,0.002]
[1766586872509,0.04284049,2917.8,2917.2,0.892]
[1766586872679,0.04284049,2917.8,2917.3,0.892]
[1766586872884,0.09877552,2917.9,2917.3,0.892]
[1766586872885,0.04283609,2918.1,2917.3,0.892]
[1766586873493,0.9832,2918.7,2917.4,0.956]
[1766586873494,0.04283022,2918.5,2917.4,0.956]
[1766586873699,0.04283022,2918.5,2917.5,1.1408]
[1766586874004,0.04283022,2918.5,2917.6,4.38347463]
[1766586874202,0.04283168,2918.4,2917.6,4.38347463]
[1766586874386,3.46898709,2918.8,2917.6,4.38347463]
[1766586874585,0.04282581,2918.8,2917.6,4.38347463]
[1766586874776,0.35675764,2918.7,2917.7,0.45682746]
[1766586874977,0.04282875,2918.6,2917.8,0.892]
[1766586875807,3.46894402,2918.8,2917.8,0.892]
[1766586876521,6.89506223,2918.8,2917.9,0.892]
[1766586876688,6.85223642,2918.8,2917.9,0.892]
[1766586877006,7.54746695,2918.7,2918.0,1e-08]
[1766586877206,1.08607552,2918.5,2917.4,0.892]
[1766586877375,0.9873,2918.3,2917.3,0.892]
[1766586877705,1.08607552,2918.1,2916.8,0.9412]
[1766586877911,0.9873,2917.2,2916.4,0.002]
[1766586878220,0.9873,2917.0,2916.0,1.10142151]
[1766586878427,0.04285371,2916.9,2916.0,0.20942151]
[1766586878586,0.09877552,2915.2,2912.8,0.9412]
[1766586878786,0.17849024,2914.8,2913.3,0.9412]
[1766586879011,0.04288606,2914.7,2913.5,0.9412]
[1766586879211,0.17849024,2914.8,2913.7,0.9412]
[1766586879397,0.441,2916.1,2913.9,0.9412]
[1766586879603,0.04286694,2916.0,2913.9,0.9412]
[1766586879788,0.29877552,2916.7,2914.1,0.9412]
[1766586879789,6.85729958,2916.6,2914.1,0.9412]
[1766586880008,0.09877552,2916.1,2914.1,0.9412]
[1766586880314,0.09877552,2915.9,2914.3,0.9412]
[1766586880515,0.04286988,2915.8,2914.3,0.9412]
[1766586880712,0.04286841,2915.9,2914.5,0.9412]
[1766586881024,0.2,2916.5,2914.5,0.9412]
[1766586881228,0.2,2916.5,2914.7,0.9412]
[1766586881229,0.74859102,2916.4,2914.7,0.9412]
[1766586881779,3.4290025,2916.3,2914.8,3.43076711]
[1766586882113,0.042864,2916.2,2914.9,0.9412]
[1766586882323,0.04286547,2916.1,2915.0,1.8332]
[1766586882515,0.04286253,2916.3,2915.0,1.8332]
[1766586882702,0.41775185,2916.2,2915.0,2.35959671]
[1766586883020,0.04286547,2916.1,2915.0,2.35959671]
[1766586883320,0.04286547,2916.1,2915.1,0.9412]
[1766586883479,0.04286253,2916.3,2915.1,0.9412]
[1766586884185,0.042864,2916.2,2915.2,0.9412]
[1766586884398,6.85733092,2916.6,2915.2,1.12452]
[1766586884399,0.04285959,2916.5,2915.2,1.12452]
[1766586885416,0.97677552,2917.1,2915.2,1.12452]
[1766586885417,6.85612422,2917.1,2915.2,1.12452]
[1766586885612,0.14162776,2917.0,2915.2,1.12452]
[1766586885920,0.09877552,2916.8,2915.2,1.12452]
[1766586886211,0.09877552,2916.6,2915.3,0.893]
[1766586886380,1.08558248,2916.5,2915.3,0.893]
[1766586886586,1.04272289,2916.5,2915.3,1.8342]
[1766586886804,0.04285959,2916.5,2915.4,0.9412]
[1766586887028,0.09877552,2917.0,2915.4,0.9412]
[1766586887309,0.09877552,2917.2,2915.4,0.9412]
[1766586887310,6.89946335,2916.9,2915.4,0.9412]
[1766586887511,0.09877552,2916.8,2915.4,0.9412]
[1766586887686,0.73839517,2916.7,2915.5,0.892]
[1766586888086,3.42864979,2916.6,2915.5,0.892]
[1766586888287,0.04285959,2916.5,2915.5,0.892]
[1766586890021,0.04286106,2916.4,2915.6,0.9412]
[1766586890218,0.09877552,2917.8,2915.7,0.97549708]
[1766586890388,3.42740307,2917.7,2915.7,0.97549708]
[1766586890588,0.04283255,2917.5,2915.7,0.97549708]
[1766586890885,0.09877552,2917.8,2915.7,0.97549708]
[1766586891104,0.04283255,2917.7,2915.9,0.9412]
[1766586891316,0.04283255,2917.7,2916.1,0.9412]
[1766586891489,0.04283255,2918.3,2916.3,0.9412]
[1766586891793,0.04283255,2918.3,2915.9,0.09877552]
[1766586891794,0.04283255,2918.3,2916.5,0.9412]
[1766586891994,0.04283255,2918.3,2916.7,0.9412]
[1766586892218,0.04283255,2918.3,2916.9,0.9412]
[1766586892219,0.68959153,2918.2,2916.9,0.9412]
[1766586892419,0.04283255,2918.1,2917.1,0.9412]
[1766586892723,3.42583076,2919.0,2917.3,0.9412]
[1766586892925,3.42583076,2919.0,2917.5,0.9412]
[1766586893109,3.42583076,2919.0,2917.7,0.9412]
[1766586893329,0.38540743,2918.9,2917.9,0.9412]
[1766586893498,0.04282435,2918.9,2918.0,0.97547004]
[1766586893700,0.04282288,2919.0,2918.0,0.97547004]
[1766586894241,6.85189626,2918.9,2918.1,0.892]
[1766586894547,0.04282581,2918.8,2918.1,0.892]
[1766586894893,1.701e-05,2919.4,2918.2,0.9412]
[1766586895143,0.34262551,2919.4,2918.4,0.9412]
[1766586895327,0.34262551,2919.4,2918.5,0.03426417]
[1766586895488,0.34262551,2919.4,2918.6,0.892]
[1766586895921,0.34262551,2919.4,2918.7,0.892]
[1766586896111,0.34262551,2919.4,2918.7,0.92626182]
[1766586896308,0.37688695,2919.3,2918.7,1.86746182]
[1766586896533,0.001,2919.5,2918.7,0.87626182]
[1766586896709,0.001,2919.5,2918.8,0.9412]
[1766586896905,0.001,2919.5,2918.9,0.03425948]
[1766586897231,0.001,2919.5,2918.9,0.97545948]
[1766586897830,0.001,2919.5,2918.9,0.9412]
[1766586898004,0.001,2919.5,2919.0,0.9262583]
[1766586898529,0.001,2920.7,2919.1,0.9412]
[1766586898717,6.84869988,2920.7,2919.1,0.97545713]
[1766586898922,6.84869988,2920.7,2919.3,0.9412]
[1766586899121,6.84869988,2920.7,2919.4,0.03425361]
[1766586899444,3.4248471,2920.7,2919.4,0.9412]
[1766586899611,0.34248471,2920.6,2919.4,0.9412]
[1766586899810,0.09877552,2921.8,2919.2,0.891]
[1766586899811,0.001,2921.9,2919.3,1.03997552]
[1766586900007,3.42254774,2921.8,2919.7,0.09877552]
[1766586900207,0.001,2921.9,2919.9,0.9412]
[1766586900411,0.09877552,2921.8,2920.1,0.9412]
[1766586900608,0.09877552,2921.8,2920.3,0.9412]
[1766586900810,0.001,2921.9,2920.4,0.97544188]
[1766586901011,0.68563927,2921.9,2920.4,0.97544188]
[1766586901201,0.68563927,2921.9,2920.4,0.9412]
[1766586901831,0.68563927,2921.9,2920.5,0.92524071]
[1766586902207,0.09877552,2921.6,2919.5,0.9227]
[1766586902422,0.09877552,2921.4,2919.6,0.92525126]
[1766586902643,1.37903723,2921.3,2919.6,0.92525126]
[1766586902944,1.37903723,2921.3,2919.6,0.891]
[1766586903135,0.09877552,2921.2,2919.6,0.03425126]
[1766586903316,0.09877552,2921.2,2919.7,0.891]
[1766586903945,1.37903723,2921.3,2919.7,0.891]
[1766586904253,0.09877552,2921.0,2918.9,3.42587707]
[1766586904462,0.2,2920.8,2919.0,1.8469583]
[1766586904740,0.29877552,2920.8,2919.0,1.8469583]
[1766586905304,0.29877552,2920.8,2919.1,0.9227]
[1766586905503,0.09877552,2920.8,2919.3,0.9227]
[1766586906525,6.8476735,2920.7,2919.5,0.9227]
[1766586906725,6.8476735,2920.7,2919.6,1.84695126]
[1766586906926,6.8476735,2920.7,2919.7,0.89]
[1766586907738,6.8476735,2920.7,2919.8,0.03424892]
[1766586907907,3.42383675,2920.7,2919.8,0.03424892]
[1766586908237,0.68475647,2920.6,2919.8,0.95694892]
[1766586908811,0.68475647,2920.6,2919.8,3.45911814]
[1766586909006,3.78566311,2921.0,2920.0,0.9227]
[1766586909252,3.42357126,2921.0,2920.2,0.9227]
[1766586909576,0.8515,2920.9,2918.9,0.9227]
[1766586909844,10.27071378,2921.0,2919.5,0.9227]
[1766586909845,6.84714252,2921.0,2919.5,0.9227]
[1766586910033,6.84714252,2921.0,2919.7,0.9227]
[1766586910239,0.68471425,2920.9,2919.8,0.95694892]
[1766586910554,0.8515,2920.5,2918.2,0.9227]
[1766586910709,0.8515,2920.3,2918.7,0.9227]
[1766586910907,10.27186194,2920.6,2918.7,0.9227]
[1766586910908,0.88578147,2920.2,2918.7,0.9227]
[1766586911108,0.8515,2920.0,2918.1,0.9227]
[1766586911319,0.95027552,2919.8,2918.1,0.9227]
[1766586911527,0.8515,2919.4,2918.2,0.89]
[1766586911729,0.88578147,2919.3,2918.2,0.89]
[1766586911941,0.88578147,2919.3,2918.3,0.89]
[1766586912527,3.42559605,2919.2,2918.3,0.89]
[1766586912745,0.46541922,2919.1,2918.4,0.95696535]
[1766586912944,0.03428147,2919.1,2918.1,0.89]
[1766586913123,0.03428147,2919.2,2918.2,0.9227]
[1766586914621,6.8514268,2919.1,2918.2,0.9227]
[1766586914848,0.03428147,2919.0,2918.2,0.9227]
[1766586915349,0.03428147,2918.9,2918.3,0.9227]
[1766586915641,0.03428147,2919.1,2918.3,0.95696652]
[1766586916152,3.42551736,2919.3,2918.3,0.9227]
[1766586916353,6.8510748,2919.3,2918.3,0.9227]
[1766586916546,3.42551736,2919.3,2918.4,0.95696535]
[1766586916751,3.42536137,2919.4,2918.4,0.95696535]
[1766586917260,6.85072274,2919.4,2918.4,0.95696535]
[1766586917555,1.74497227,2919.3,2918.0,0.889]
[1766586917732,0.9723,2919.2,2917.8,0.889]
[1766586917939,0.9723,2919.2,2917.9,0.03427122]
[1766586918730,6.8514268,2919.1,2917.8,0.889]
[1766586918960,6.8514268,2919.1,2917.9,0.03427122]
[1766586919159,1.12493283,2919.0,2917.9,0.03427122]
[1766586920032,2.09723283,2919.0,2917.9,0.03427122]
[1766586920736,3.42594813,2918.9,2917.9,0.03427122]
[1766586921361,0.9723,2918.8,2917.8,0.03427239]
[1766586921658,0.9723,2918.6,2917.5,0.03427592]
[1766586921859,0.9723,2918.6,2917.3,0.03427827]
[1766586922230,0.9723,2918.6,2917.1,0.03428062]
[1766586922456,0.9723,2918.6,2917.1,3.46229304]
[1766586922661,0.9723,2918.6,2917.9,0.002]
[1766586922955,3.42653508,2918.4,2917.9,0.002]
[1766586923162,6.85307016,2918.4,2917.9,0.002]
[1766586923764,0.9723,2918.3,2917.1,0.03428062]
[1766586923949,0.9723,2918.3,2916.0,0.0008]
[1766586923950,0.9723,2917.9,2916.0,0.0008]
[1766586924148,0.9723,2917.7,2916.0,4.38710191]
[1766586924351,0.9723,2917.5,2916.0,0.95779355]
[1766586924532,1.88258062,2917.4,2916.2,3.42908012]
[1766586924729,6.8558892,2917.2,2916.0,0.9235]
[1766586924929,0.9723,2917.0,2916.0,0.0008]
[1766586925164,0.9723,2916.8,2916.0,0.0008]
[1766586925368,0.03428062,2916.7,2916.0,0.0008]
[1766586926460,0.03428062,2916.7,2916.0,0.03509355]
[1766586926672,0.9723,2916.5,2915.5,0.002]
[1766586926830,0.9723,2916.3,2914.8,0.889]
[1766586927030,7.07688046,2916.4,2914.8,0.889]
[1766586927031,0.9723,2916.1,2914.9,0.03430649]
[1766586927234,0.03428062,2916.0,2914.9,0.03430649]
[1766586927867,0.03428062,2916.2,2914.9,0.95700649]
[1766586928042,0.68558892,2917.1,2914.9,0.95700649]
[1766586928043,0.876,2916.9,2915.0,0.9227]
[1766586928240,0.876,2916.9,2914.9,5.95115632]
[1766586928241,0.21911062,2916.8,2915.2,0.9227]
[1766586928441,0.21911062,2916.8,2915.4,0.9227]
[1766586928636,0.9723,2916.7,2915.4,0.9227]
[1766586928842,0.9723,2916.5,2915.5,0.03429943]
[1766586929139,1.88358062,2916.4,2915.3,0.03430178]
[1766586929342,0.03428062,2916.4,2915.4,3.4300205]
[1766586929639,1.00658062,2916.6,2915.5,0.03429943]
[1766586929865,1.00658062,2916.6,2915.6,0.03429825]
[1766586930038,1.00658062,2916.6,2915.4,7.78279583]
[1766586930039,1.88258062,2916.6,2915.4,7.78279583]
[1766586930367,4.43430675,2917.4,2915.5,0.95699943]
[1766586930569,0.03428062,2917.4,2915.7,0.9227]
[1766586930898,0.9723,2917.6,2916.1,0.9227]
[1766586931052,0.88131254,2918.2,2916.3,0.9227]
[1766586931053,4.39929798,2918.1,2916.3,0.9227]
[1766586931250,0.876,2917.9,2916.5,0.9227]
[1766586931449,0.03428062,2917.8,2916.6,0.03428649]
[1766586931673,1.18948806,2917.7,2916.5,0.9227]
[1766586931873,0.9986,2917.5,2916.0,4.34545528]
[1766586932155,0.03428062,2917.4,2916.2,0.9161]
[1766586932349,0.03428062,2917.6,2916.3,0.03429002]
[1766586932555,1.18948806,2917.7,2916.3,0.95039002]
[1766586932763,0.03428062,2917.6,2916.3,0.95039002]
[1766586933060,4.46046323,2917.6,2916.3,4.34505534]
[1766586933366,0.9986,2917.5,2916.4,0.03428884]
[1766586933558,1.8746,2917.4,2916.4,0.03428884]
[1766586933758,0.03428062,2917.3,2916.4,0.03428884]
[1766586934060,0.03428062,2917.3,2914.9,0.9181]
[1766586934061,1.1986,2917.0,2914.9,0.9181]
[1766586934261,1.1986,2916.8,2915.0,0.01717148]
[1766586934493,1.09737552,2916.6,2915.0,0.01717148]
[1766586934795,0.9986,2916.4,2915.0,0.01717148]
[1766586934956,0.876,2916.4,2915.2,3.43020028]
[1766586935157,0.04286253,2916.3,2915.3,0.933275]
[1766586935386,0.04286253,2916.3,2915.1,0.43658483]
[1766586935589,0.04286253,2916.3,2915.2,3.44743205]
[1766586935770,0.04286253,2916.3,2915.2,7.79382842]
[1766586936090,3.47176435,2916.4,2915.3,0.9161]
[1766586936289,6.90066764,2916.4,2915.3,0.9161]
[1766586936489,6.85780658,2916.4,2915.4,0.01717147]
[1766586936783,1.76598066,2916.3,2915.1,3.44756334]
[1766586936984,0.042864,2916.2,2915.1,3.44759082]
[1766586937184,1.035464,2916.2,2915.1,0.01717677]
[1766586938085,1.035464,2916.2,2914.9,0.002]
[1766586938487,1.035464,2916.2,2914.9,0.01918147]
[1766586938488,0.876,2916.1,2914.9,0.01918147]
[1766586938687,1.035464,2916.2,2915.0,7.78185432]
[1766586938688,0.04286694,2916.0,2915.0,7.78185432]
[1766586938892,0.19088806,2917.3,2915.1,0.93798265]
[1766586939199,0.0428493,2917.2,2915.4,0.9208]
[1766586939356,0.9926,2917.2,2915.6,0.9208]
[1766586939553,1.0354493,2917.2,2915.7,0.9208]
[1766586939789,1.1509924,2917.1,2915.7,1.10178]
[1766586939968,0.04285224,2917.0,2915.9,0.9208]
[1766586940165,0.04285224,2917.0,2915.7,0.18098]
[1766586940166,0.04285224,2917.0,2916.1,0.9208]
[1766586940362,0.04285224,2917.0,2916.2,0.9208]
[1766586940888,1.1509924,2917.1,2915.7,1.11893206]
[1766586941085,0.04285224,2917.0,2915.9,0.9208]
[1766586941291,0.04285371,2916.9,2916.1,0.9208]
[1766586941487,0.877,2917.1,2916.2,1e-08]
[1766586941785,1.03545224,2917.0,2915.3,0.9208]
[1766586941963,0.9926,2916.8,2915.3,0.9208]
[1766586942167,1.22241665,2916.7,2915.3,0.9208]
[1766586942365,1.22241665,2916.7,2915.5,3.42991739]
[1766586942571,0.877,2916.6,2915.4,3.43002887]
[1766586942772,0.04285959,2916.5,2915.4,3.43002887]
[1766586942975,0.04285959,2916.5,2915.3,0.9208]
[1766586942976,4.46430451,2916.5,2915.3,4.35096129]
[1766586943169,0.53413045,2916.4,2915.3,4.87495742]
[1766586943396,0.04286253,2916.3,2915.3,4.87495742]
[1766586943578,1.03546253,2916.3,2915.1,0.889]
[1766586944999,3.42912008,2916.2,2915.1,0.889]
[1766586945179,1.91246547,2916.1,2914.9,0.002]
[1766586945487,0.91986547,2916.1,2914.9,0.002]
[1766586945688,0.9926,2915.9,2914.9,0.002]
[1766586945894,0.04286988,2915.8,2914.9,0.002]
[1766586946272,1.03546988,2915.8,2914.9,0.002]
[1766586947074,6.85941626,2915.7,2914.9,0.002]
[1766586947274,0.88899999,2914.3,2913.4,0.003]
[1766586947492,0.88899999,2914.3,2913.4,1.8128]
[1766586947663,0.88899999,2914.3,2913.5,1.44532814]
[1766586947867,0.88899999,2914.3,2913.5,0.9208]
[1766586948069,0.88899999,2914.3,2913.4,0.892]
[1766586948269,1.88159999,2914.3,2913.4,0.003]
[1766586948496,1.88159999,2914.3,2913.5,3.43223142]
[1766586948683,0.04289341,2914.2,2913.4,3.43537249]
[1766586948989,0.04289341,2914.2,2913.5,0.34353725]
[1766586949193,0.88899999,2914.3,2913.5,3.7757465]
[1766586949386,0.88899999,2914.3,2913.5,10.64034234]
[1766586949571,0.9926,2914.9,2913.5,10.64034234]
[1766586949773,0.09877552,2915.4,2913.6,0.1073]
[1766586949774,0.04287576,2915.4,2913.6,0.1073]
[1766586949994,0.04287576,2915.4,2914.9,0.002]
[1766586949995,0.877,2915.3,2914.9,0.002]
[1766586950168,0.09877552,2915.0,2913.4,0.003]
[1766586950365,0.9926,2915.2,2913.5,3.43227484]
[1766586950593,0.9926,2915.0,2913.6,0.34352748]
[1766586950791,0.9926,2914.8,2913.7,0.002]
[1766586950998,0.9926,2914.6,2913.7,0.002]
[1766586951298,0.9926,2914.4,2913.6,0.29552748]
[1766586951512,1.03549194,2914.3,2913.4,0.003]
[1766586951712,0.9926,2914.3,2913.4,0.003]
[1766586951998,1.03543047,2914.2,2913.4,3.43534968]
[1766586952382,1.03543047,2914.2,2913.4,0.003]
[1766586952713,1.03543047,2914.2,2913.6,3.43216351]
[1766586952870,0.9926,2914.2,2913.6,0.34351635]
[1766586953071,0.94285178,2914.2,2913.6,3.43217161]
[1766586953303,0.94285178,2914.2,2913.4,0.003]
[1766586953718,0.04289489,2914.1,2913.4,0.003]
[1766586954470,1.03549489,2914.1,2913.4,0.003]
[1766586954666,0.09877552,2915.2,2913.4,0.003]
[1766586954667,0.9926,2915.1,2913.4,0.1621]
[1766586954969,0.9926,2915.1,2913.5,0.1591]
[1766586955202,0.9926,2916.3,2914.0,0.9208]
[1766586955504,0.9926,2916.1,2914.2,0.9208]
[1766586955799,0.9926,2915.7,2914.1,3.43159122]
[1766586955989,0.9926,2915.5,2914.1,3.43159122]
[1766586956197,1.03547576,2915.4,2914.1,3.43159122]
[1766586956404,0.9926,2915.4,2914.2,0.34315912]
[1766586956903,1.03544665,2915.3,2914.2,1.23215912]
[1766586957081,0.0428787,2915.2,2914.2,1.23215912]
[1766586957472,0.0428787,2915.2,2914.3,6.86271144]
[1766586957676,0.9926,2915.5,2914.2,0.34315912]
[1766586957877,0.9926,2915.3,2913.6,3.43207366]
[1766586958189,0.9926,2915.1,2913.4,0.003]
[1766586958400,0.9926,2914.9,2913.4,3.43533862]
[1766586958607,0.9926,2914.7,2913.4,3.43533862]
[1766586958904,1.03548753,2914.6,2913.4,0.003]
[1766586959206,1.03548753,2914.6,2913.7,3.43205096]
[1766586959405,0.04288753,2914.6,2913.6,6.86436024]
[1766586959578,0.9926,2915.5,2913.8,0.9208]
[1766586960297,1.03547576,2915.4,2913.9,0.889]
[1766586960499,1.03547576,2915.4,2913.6,6.86436024]
[1766586960809,1.03547576,2915.4,2913.7,2.88290175]
[1766586960975,1.03547576,2915.4,2913.7,1.07310175]
[1766586961413,0.9926,2915.4,2913.7,1.07310175]
[1766586961629,0.9626,2915.2,2913.7,1.07310175]
[1766586961776,0.9626,2915.0,2913.7,3.43205274]
[1766586961973,0.9626,2915.0,2913.7,6.86411506]
[1766586962173,0.04288311,2914.9,2913.7,6.86411506]
[1766586962385,0.9626,2915.0,2913.7,6.86411506]
[1766586962702,0.9626,2914.8,2913.7,3.43205274]
[1766586962889,0.9626,2914.8,2913.8,0.34320527]
[1766586963200,0.3244032,2916.2,2913.9,0.92331826]
[1766586963201,0.9626,2915.4,2913.9,0.92331826]
[1766586963383,0.04283488,2915.3,2914.0,1.01121708]
[1766586963584,0.04283488,2915.3,2914.1,3.43159122]
[1766586963794,1.00543488,2915.3,2914.1,3.43159122]
[1766586964087,0.9626,2915.3,2914.2,0.81832692]
[1766586964478,0.04283488,2915.2,2914.2,0.81832692]
[1766586964679,3.4291463,2916.2,2914.2,0.81832692]
[1766586964879,1.00543488,2916.1,2914.3,0.9769]
[1766586965179,0.9626,2915.9,2914.5,0.9769]
[1766586965380,0.04283488,2916.1,2914.2,0.88278771]
[1766586965381,0.04283488,2915.8,2914.7,0.9769]
[1766586965614,0.04283488,2916.2,2914.9,7.83819884]
[1766586965777,0.04283488,2916.2,2915.1,0.9769]
[1766586965977,0.04283488,2916.3,2915.2,0.92330296]
[1766586966182,0.875,2916.2,2914.8,0.190021]
[1766586966479,1.00543488,2916.1,2914.9,0.03430649]
[1766586966682,0.9626,2915.9,2914.5,0.0343112]
[1766586966881,0.9626,2915.7,2913.8,0.34320527]
[1766586967089,0.04283488,2915.6,2914.2,3.43136603]
[1766586967289,0.9626,2915.7,2914.3,0.03431355]
[1766586967491,0.9626,2915.7,2914.4,3.43123398]
[1766586967691,1.00543488,2915.6,2914.5,0.0343112]
[1766586967896,3.52866044,2916.4,2914.6,1.01121002]
[1766586967897,4.39191978,2916.1,2914.6,1.01121002]
[1766586968192,3.52866278,2916.4,2914.6,1.01121002]
[1766586968193,0.9626,2915.8,2914.6,0.87624252]
[1766586968391,0.9626,2915.6,2914.4,0.889]
[1766586968594,0.875,2915.9,2914.5,3.46543146]
[1766586968595,1.8376,2915.9,2914.5,3.46543146]
[1766586968817,1.00543488,2915.8,2914.5,3.43112026]
[1766586969115,1.00543488,2915.8,2914.5,0.0343112]
[1766586969320,1.00543488,2915.8,2914.3,0.889]
[1766586969494,0.9626,2915.6,2914.5,3.43105175]
[1766586969709,1.00543488,2915.5,2914.6,3.46523239]
[1766586969910,1.00543488,2915.5,2914.6,0.03431002]
[1766586970116,1.00543488,2915.5,2914.4,3.4311762]
[1766586970731,1.00543488,2915.5,2914.4,3.43118038]
[1766586971054,1.00543488,2915.5,2914.5,0.0343112]
[1766586971203,1.00543488,2915.5,2914.2,0.9769]
[1766586971407,1.00543488,2915.5,2914.1,4.31953523]
[1766586971629,0.9626,2915.3,2914.2,0.03431473]
[1766586971948,6.8601221,2915.4,2914.2,0.03431473]
[1766586971949,1.00543488,2915.2,2914.2,0.03431473]
[1766586972157,1.79199058,2915.2,2914.2,0.03431473]
[1766586972308,0.9626,2915.1,2914.0,0.03431708]
[1766586972508,0.9626,2914.9,2913.8,3.46618671]
[1766586972810,1.00543488,2914.8,2913.9,0.43541867]
[1766586973015,1.00543488,2914.8,2914.0,0.03431708]
[1766586973239,0.04283488,2914.7,2914.1,0.03431591]
[1766586973446,0.04283488,2914.7,2913.8,0.03431944]
[1766586973654,0.04283488,2914.7,2913.9,0.03431826]
[1766586973947,0.04283488,2914.7,2913.9,3.43179136]
[1766586974139,0.04283488,2914.7,2914.0,0.03431708]
[1766586974462,1.00543488,2914.7,2914.0,0.03431708]
[1766586974610,1.00543488,2914.7,2913.5,0.92432297]
[1766586974831,4.43632524,2914.7,2913.6,3.43211966]
[1766586975046,3.47372524,2914.7,2913.7,0.03432062]
[1766586975247,0.9626,2914.5,2913.7,0.03432062]
[1766586975536,0.04283488,2914.4,2913.8,0.03431944]
[1766586976076,0.04283488,2914.5,2913.8,3.46625372]
[1766586976374,0.9626,2914.8,2913.8,0.03431944]
[1766586976559,0.9626,2914.8,2913.5,0.89]
[1766586976560,0.9626,2914.6,2913.6,0.0343218]
[1766586976864,0.9626,2914.4,2913.5,0.03632297]
[1766586977061,0.04283488,2914.3,2913.5,0.03632297]
[1766586977426,0.9626,2914.2,2913.5,0.03632297]
[1766586977632,0.9626,2914.0,2913.5,0.03632297]
[1766586977828,0.04283488,2913.9,2913.5,0.002]
[1766586978435,0.9626,2913.8,2913.0,0.03432887]
[1766586978761,0.9626,2913.6,2912.4,0.002]
[1766586979076,0.9626,2913.4,2912.4,0.002]
[1766586979229,0.04283488,2913.3,2912.4,3.43559093]
[1766586979431,0.04283488,2913.5,2912.5,0.03433476]
[1766586979633,0.9626,2913.4,2912.5,0.03433476]
[1766586979833,1.88043488,2913.4,2912.5,0.38131733]
[1766586980034,0.9626,2913.3,2912.5,0.03433476]
[1766586980330,0.9626,2913.3,2912.1,0.03433948]
[1766586980535,0.04283488,2913.6,2912.5,6.86690889]
[1766586980842,0.9626,2913.6,2912.0,1.012508]
[1766586981162,6.05846023,2913.7,2911.0,9.43e-06]
[1766586981163,1.1784317,2911.5,2911.0,9.43e-06]
[1766586981368,0.04293467,2911.4,2911.0,9.43e-06]
[1766586981531,2.0534317,2911.5,2911.0,9.43e-06]
[1766586981532,0.04293614,2911.3,2911.0,9.43e-06]
[1766586981731,0.88623467,2911.4,2909.5,0.9769]
[1766586982039,0.8433,2911.1,2909.6,4.42252409]
[1766586982242,0.8433,2911.2,2909.7,0.9769]
[1766586982439,1.1784317,2911.5,2910.1,0.9769]
[1766586982640,1.1784317,2911.5,2910.3,0.9769]
[1766586982941,0.1793335,2912.5,2910.9,0.9769]
[1766586983143,0.22225195,2912.5,2911.1,0.9769]
[1766586983480,0.1793335,2912.5,2911.2,0.9769]
[1766586983633,0.03424707,2912.4,2911.2,1.19774009]
[1766586983962,0.03424707,2912.4,2911.3,6.86978324]
[1766586984162,0.9626,2913.3,2911.5,0.9769]
[1766586984350,0.03424707,2913.2,2911.7,0.9769]
[1766586984530,0.90924707,2913.2,2911.8,0.03434301]
[1766586984738,0.90924707,2913.2,2911.8,0.22426731]
[1766586985171,0.90924707,2913.2,2911.8,1.20116731]
[1766586985470,0.9626,2913.1,2911.8,1.01124301]
[1766586985659,0.03424707,2913.0,2911.8,1.01124301]
[1766586985856,0.03424707,2913.0,2911.9,3.43418386]
[1766586986056,0.03424707,2913.0,2912.0,0.03434065]
[1766586986371,0.03424707,2913.0,2911.8,4.41119797]
[1766586986571,4.39456768,2913.8,2912.0,1.07567552]
[1766586986772,0.90924707,2913.7,2912.2,0.9769]
[1766586986965,3.46630939,2913.7,2912.3,0.03433712]
[1766586987148,0.001,2913.4,2911.8,7.74196117]
[1766586987351,0.99784707,2913.4,2911.8,7.74196117]
[1766586987581,0.99784707,2913.4,2911.9,1.75988612]
[1766586988078,4.39513355,2913.3,2912.0,3.43406593]
[1766586988278,0.03424707,2913.2,2912.0,6.86813186]
[1766586988443,0.03424707,2913.1,2912.1,0.9769]
[1766586988648,0.99684707,2913.3,2912.1,0.9769]
[1766586988856,0.9626,2913.1,2911.7,3.43438171]